Workbook

Sheet Hoja1
D4: Aplicación de las deducciones
D5: básicas de ley (pensionados) - Ley 9796
D6: Cotización | E6: Renta
D7: 287000 | E7: Base Cotizable | F7: 929000
D8: =+D7*8 -> 2296000 | F8: 1363000
D9: 3908496.88 | F9: 2392000
F10: 4783000
E11: Monto de pensión bruta | F11: 0
E12: Período | F12: 2024-01-01
D13: Base cotizable | E13: % Cotización | F13: Deducción
D14: =D7 -> 287000 | E14: ** | F14: **
D16: =D7*2.8 -> 803600 | E16: 0.1 | F16: =IF($F$11<=D16,0,IF(AND($F$11>D16),($F$11*0))) -> 0
D18: =D7*4 -> 1148000 | E18: 0.12 | F18: =IF($F$11<=D16,0,IF(AND(D16<$F$11,$F$11<=D18),($F$11-D16)*E18,(D18-D16)*E18)) -> 0
D20: =D7*6 -> 1722000 | E20: 0.14 | F20: =IF($F$11<=D18,0,IF(AND(D18<$F$11,$F$11<=D20),($F$11-D18)*E20,(D20-D18)*E20)) -> 0
D22: =D9 -> 3908496.88 | E22: 0.16 | F22: =IF($F$11<=D20,0,IF(AND(D20<$F$11,$F$11<=D22),($F$11-D20)*E22,(D22-D20)*E22)) -> 0
D24: =+D7*8 -> 2296000 | E24: ** | F24: **
D26: =D8*1.25 -> 2870000 | E26: 0.25 | F26: =IF($F$11<=D8,0,IF(AND(D8<$F$11,$F$11<=D26),($F$11-D8)*E26,(D26-D8)*E26)) -> 0
D28: =D26*1.25 -> 3587500 | E28: 0.35 | F28: =IF($F$11<=D26,0,IF(AND(D26<$F$11,$F$11<=D28),($F$11-D26)*E28,(D28-D26)*E28)) -> 0
D30: =D28*1.25 -> 4484375 | E30: 0.45 | F30: =IF($F$11<=D28,0,IF(AND(D28<$F$11,$F$11<=D30),($F$11-D28)*E30,(D30-D28)*E30)) -> 0
D32: =D30*1.25 -> 5605468.75 | E32: 0.55 | F32: =IF($F$11<=D30,0,IF(AND(D30<$F$11,$F$11<=D32),($F$11-D30)*E32,(D32-D30)*E32)) -> 0
D34: =D32*1.25 -> 7006835.938 | E34: 0.65 | F34: =IF($F$11<=D32,0,IF(AND(D32<$F$11,$F$11<=D34),($F$11-D32)*E34,(D34-D32)*E34)) -> 0
D35: o más | E35: 0.75 | F35: =IF($F$11<=D34,0,($F$11-D34)*E35) -> 0
D36: Total deducciones Art. 70 | F36: =(F16+F18+F20+F22) -> 0
D37: TOTAL DEDUCCIONES ART. 71 (Sin Ajuste) | F37: =(F26+F28+F30+F32+F34+F35) -> 0
D38: Total deducciones Art. 71 (ley 9796) | F38: =IFERROR(IF(IF(G49>0.5,F11*0.5-F36-F45-F47-F48-F49,F37)<=0,0,IF(G49>0.5,F11*0.5-F36-F45-F47-F48-F49,F37)),0) -> 0
E39: Total fondo | F39: =ROUND(F36+F38,0) -> 0
D41: Impuesto de renta | E41: 0.1 | F41: =IF($F$11<$F$7,0,IF(AND($F$7<$F$11,$F$11<$F$8),($F$11-$F$7)*$E$41,IF($F$11>$F$8,($F$8-$F$7)*$E$41))) -> 0
E42: 0.15 | F42: =IF($F$11<$F$8,0,IF(AND($F$8<$F$11,$F$11<$F$9),($F$11-$F$8)*$E$42,IF($F$11>$F$9,($F$9-$F$8)*$E$42))) -> 0
E43: 0.2 | F43: =IF($F$11<$F$9,0,IF(AND($F$9<$F$11,$F$11<$F$10),($F$11-$F$9)*$E$43,IF($F$11>$F$10,($F$10-$F$9)*$E$43))) -> 0
E44: 0.25 | F44: =IF($F$11<$F$10,0,IF(AND($F$10<$F$11,$F$11<$F$10),($F$11-$F$10)*$E$44,IF($F$11>$F$10,($F$11-$F$10)*$E$44))) -> 0
E45: Total fondo | F45: =SUM(F41:F44) -> 0
D47: C.C.S.S. | E47: 0.05 | F47: =E47*F11 -> 0
D48: JUPEMA | E48: 0.005 | F48: =E48*F11 -> 0 | G48: %Cotizado
D49: Póliza S.S.V.M.N. | F49: 19970 | G49: =+(+F36+F37+F45+F47+F48+F49)/F11 ->  | H49: Sin Ajuste
D50: Deducciones a terceros | F50: 0 | G50: =+(+F36+F38+F45+F47+F48+F49)/F11 ->  | H50: Ajustado
D51: Total deducciones de ley (según ley 9796) | F51: =+F36+F38+F45+F47+F48+F49 -> 19970
D52: Pensión líquida (Pensión bruta-Deducción ley-Deducción a terceros) | F52: =+F11-F51-F50 -> -19970
